[Event "Azerbaijan Championship 2021"]
[Site "Nakhchivan"]
[Date "2021.05.04"]
[Round "1.4"]
[White "Iskandarov, Misratdin"]
[Black "Gadimbayli, Abdulla"]
[Result "1/2-1/2"]
[ECO "A40"]
[WhiteElo "2535"]
[BlackElo "2470"]
[Annotator "ChessBase"]
[PlyCount "120"]
[EventDate "2021.05.04"]
[EventType "tourn"]
[EventCountry "AZE"]
[SourceTitle "playchess.com"]
[Source "ChessBase"]
[SourceQuality "1"]
[TimeControl "40/5400+30:1800+30"]

1. d4 {[%emt 0:00:00]} Nf6 {[%emt 0:01:02]} 2. c4 {[%emt 0:00:00]} e6 {[%emt 0:00:19]} 3. g3 {[%emt 0:00:00]} d5 {[%emt 0:04:59]} 4. Nf3 {[%emt 0:00:04]} Bb4+ {[%emt 0:16:10]} 5. Bd2 {[%emt 0:00:34]} Be7 {[%emt 0:02:32]} 6. Bg2 {[%emt 0:00:10]} O-O {[%emt 0:01:20]} 7. O-O {[%emt 0:00:17]} c6 {[%emt 0:07:37]} 8. Qc2 {[%emt 0:00:23]} b6 {[%emt 0:02:58]} 9. b3 {[%emt 0:04:59]} Bb7 {[%emt 0:01:51]} 10. Nc3 {[%emt 0:00:43]} Nbd7 {[%emt 0:10:21]} 11. e4 {[%emt 0:05:46]} dxe4 {[%emt 0:04:13]} 12. Nxe4 {[%emt 0:00:07]} c5 {[%emt 0:01:41]} 13. Nxf6+ {[%emt 0:06:06]} Bxf6 {[%emt 0:02:27]} 14. Ng5 {[%emt 0:11:20]} Bxg5 {[%emt 0:00:12]} 15. Bxb7 {[%emt 0:00:08]} Rb8 {[%emt 0:02:05]} 16. Bxg5 {[%emt 0:00:22]} Qxg5 {[%emt 0:00:05]} 17. Bc6 {[%emt 0:00:06]} Rfd8 {[%emt 0:05:22]} 18. Rad1 {[%emt 0:05:54]} Nf6 {[%emt 0:04:42]} 19. dxc5 {[%emt 0:12:05]} Qxc5 {[%emt 0:00:47]} 20. Bf3 {[%emt 0:00:09]} b5 {[%emt 0:11:41]} 21. Rxd8+ {[%emt 0:02:57]} Rxd8 {[%emt 0:00:06]} 22. Rd1 {[%emt 0:00:09]} Rxd1+ {[%emt 0:04:24]} 23. Qxd1 {[%emt 0:02:38]} bxc4 {[%emt 0:00:17]} 24. bxc4 {[%emt 0:00:10]} g6 {[%emt 0:03:37]} 25. Qa4 {[%emt 0:09:35]} Kf8 {[%emt 0:01:26]} 26. Qb5 {[%emt 0:01:37]} Qxb5 {[%emt 0:02:59]} 27. cxb5 {[%emt 0:00:10]} Ke7 {[%emt 0:01:13]} 28. a4 {[%emt 0:03:43]} Nd5 {[%emt 0:03:28]} 29. a5 {[%emt 0:19:02]} Kd6 {[%emt 0:00:06]} 30. Kg2 {[%emt 0:05:39]} Kc5 {[%emt 0:00:54]} 31. b6 {[%emt 0:00:42]} axb6 {[%emt 0:00:35]} 32. axb6 {[%emt 0:00:07]} Nxb6 {[%emt 0:00:20]} 33. h4 {[%emt 0:00:07]} h6 {[%emt 0:02:24]} 34. Bd1 {[%emt 0:00:43]} Kd4 {[%emt 0:00:08]} 35. Bf3 {[%emt 0:00:48]} Nd5 {[%emt 0:00:28]} 36. Be2 {[%emt 0:00:19]} e5 {[%emt 0:01:47]} 37. Bb5 {[%emt 0:00:12]} f5 {[%emt 0:00:55]} 38. Be8 {[%emt 0:01:37]} g5 {[%emt 0:00:06]} 39. hxg5 {[%emt 0:00:04]} hxg5 {[%emt 0:00:02]} 40. Bd7 {[%emt 0:00:00]} f4 {[%emt 0:00:00]} 41. gxf4 {[%emt 0:01:45]} gxf4 {[%emt 0:00:55]} 42. Bc6 {[%emt 0:01:17]} Nb4 {[%emt 0:04:58]} 43. Bb5 {[%emt 0:00:50]} Nd3 {[%emt 0:01:09]} 44. Ba6 {[%emt 0:00:19]} e4 {[%emt 0:04:40]} 45. Bb5 {[%emt 0:01:48]} Kc3 {[%emt 0:02:31]} 46. Bc6 {[%emt 0:03:33]} Kd4 {[%emt 0:00:34]} 47. Bb5 {[%emt 0:00:17]} Ne1+ {[%emt 0:00:05]} 48. Kf1 {[%emt 0:00:48]} Nf3 {[%emt 0:00:05]} 49. Kg2 {[%emt 0:00:31]} Ng5 {[%emt 0:00:06]} 50. Bc6 {[%emt 0:00:25]} Kd3 {[%emt 0:00:16]} 51. Bb5+ {[%emt 0:02:19]} Kd2 {[%emt 0:00:29]} 52. Bc6 {[%emt 0:00:36]} Ke2 {[%emt 0:03:42]} 53. Bb5+ {[%emt 0:00:12]} Ke1 {[%emt 0:00:19]} 54. Bc6 {[%emt 0:00:39]} Ke2 {[%emt 0:05:17]} 55. Bb5+ {[%emt 0:00:12]} Kd2 {[%emt 0:00:04]} 56. Bc6 {[%emt 0:00:10]} e3 {[%emt 0:00:02]} 57. fxe3 {[%emt 0:00:12]} fxe3 {[%emt 0:00:05]} 58. Bb5 {[%emt 0:00:06]} Ne6 {[%emt 0:00:03]} 59. Kg3 {[%emt 0:01:54]} Nc5 {[%emt 0:02:40]} 60. Bf1 {[%emt 0:00:13]} e2 {[%emt 0:01:51]} 1/2-1/2

[Event "Azerbaijan Championship 2021"]
[Site "Nakhchivan"]
[Date "2021.05.04"]
[Round "1.5"]
[White "Abbasov, Farid"]
[Black "Muradli, Mahammad"]
[Result "1/2-1/2"]
[ECO "E04"]
[WhiteElo "2528"]
[BlackElo "2449"]
[Annotator "ChessBase"]
[PlyCount "99"]
[EventDate "2021.05.04"]
[EventType "tourn"]
[EventCountry "AZE"]
[SourceTitle "playchess.com"]
[Source "ChessBase"]
[SourceQuality "1"]
[TimeControl "40/5400+30:1800+30"]

1. d4 {[%emt 0:00:00]} Nf6 {[%emt 0:00:00]} 2. c4 {[%emt 0:00:00]} e6 {[%emt 0:00:02]} 3. Nf3 {[%emt 0:00:33]} d5 {[%emt 0:00:07]} 4. g3 {[%emt 0:01:54]} dxc4 {[%emt 0:00:08]} 5. Bg2 {[%emt 0:00:03]} Bb4+ {[%emt 0:00:08]} 6. Bd2 {[%emt 0:00:05]} a5 {[%emt 0:00:08]} 7. Qc2 {[%emt 0:00:18]} Bxd2+ {[%emt 0:00:07]} 8. Qxd2 {[%emt 0:04:00]} c6 {[%emt 0:06:19]} 9. a4 {[%emt 0:09:54]} Ne4 {[%emt 0:00:52]} 10. Qc2 {[%emt 0:06:27]} Nd6 {[%emt 0:00:15]} 11. Na3 {[%emt 0:02:35]} Na6 {[%emt 0:01:27]} 12. Nxc4 {[%emt 0:05:51]} Nb4 {[%emt 0:00:05]} 13. Nxd6+ {[%emt 0:11:28]} Qxd6 {[%emt 0:00:13]} 14. Qd2 {[%emt 0:00:10]} b6 {[%emt 0:06:04]} 15. O-O {[%emt 0:11:49]} Ba6 {[%emt 0:00:14]} 16. Rfc1 {[%emt 0:04:27]} O-O {[%emt 0:00:43]} 17. Ne5 {[%emt 0:05:56]} Rac8 {[%emt 0:02:56]} 18. Nc4 {[%emt 0:09:55]} Bxc4 {[%emt 0:06:11]} 19. Rxc4 {[%emt 0:00:21]} c5 {[%emt 0:01:15]} 20. Qc1 {[%emt 0:00:18]} Rfd8 {[%emt 0:04:53]} 21. Bf3 {[%emt 0:01:42]} h6 {[%emt 0:05:44]} 22. Kg2 {[%emt 0:01:29]} Kf8 {[%emt 0:03:24]} 23. Ra3 {[%emt 0:03:47]} Ke7 {[%emt 0:04:04]} 24. h4 {[%emt 0:01:13]} Rc7 {[%emt 0:04:47]} 25. dxc5 {[%emt 0:01:41]} Rxc5 {[%emt 0:00:12]} 26. Rxc5 {[%emt 0:00:18]} Qxc5 {[%emt 0:00:05]} 27. Rc3 {[%emt 0:04:34]} Qe5 {[%emt 0:01:04]} 28. Rc7+ {[%emt 0:01:00]} Rd7 {[%emt 0:00:48]} 29. Rc8 {[%emt 0:00:29]} Na6 {[%emt 0:02:49]} 30. Qc4 {[%emt 0:03:28]} Nb4 {[%emt 0:06:02]} 31. b3 {[%emt 0:03:13]} g5 {[%emt 0:01:03]} 32. hxg5 {[%emt 0:02:18]} hxg5 {[%emt 0:00:03]} 33. Qc1 {[%emt 0:00:50]} Qg7 {[%emt 0:35:27]} 34. Rc4 {[%emt 0:01:50]} f5 {[%emt 0:02:28]} 35. g4 {[%emt 0:00:56]} Qf6 {[%emt 0:00:40]} 36. Qe3 {[%emt 0:00:47]} fxg4 {[%emt 0:01:11]} 37. Rxg4 {[%emt 0:00:12]} Nc2 {[%emt 0:00:28]} 38. Qxg5 {[%emt 0:00:46]} Qxg5 {[%emt 0:00:41]} 39. Rxg5 {[%emt 0:00:05]} Nd4 {[%emt 0:00:03]} 40. e3 {[%emt 0:00:00]} Kf6 {[%emt 0:00:00]} 41. Rg8 {[%emt 0:07:14]} Nxb3 {[%emt 0:04:43]} 42. Rb8 {[%emt 0:01:59]} Rd6 {[%emt 0:00:32]} 43. Be2 {[%emt 0:00:14]} Nc5 {[%emt 0:07:38]} 44. Bb5 {[%emt 0:00:22]} Ne4 {[%emt 0:00:05]} 45. f4 {[%emt 0:04:50]} Nc3 {[%emt 0:05:25]} 46. Kf3 {[%emt 0:03:38]} e5 {[%emt 0:01:03]} 47. e4 {[%emt 0:09:16]} exf4 {[%emt 0:00:14]} 48. Kxf4 {[%emt 0:00:10]} Re6 {[%emt 0:00:04]} 49. e5+ {[%emt 0:01:31]} Rxe5 {[%emt 0:00:02]} 50. Rxb6+ {[%emt 0:00:18]} 1/2-1/2

[Event "Azerbaijan Championship 2021"]
[Site "Nakhchivan"]
[Date "2021.05.05"]
[Round "2.1"]
[White "Safarli, Eltaj"]
[Black "Garayev, Kanan"]
[Result "1/2-1/2"]
[ECO "C07"]
[WhiteElo "2598"]
[BlackElo "2331"]
[Annotator "ChessBase"]
[PlyCount "90"]
[EventDate "2021.05.04"]
[EventType "tourn"]
[EventCountry "AZE"]
[SourceTitle "playchess.com"]
[Source "ChessBase"]
[SourceQuality "1"]
[TimeControl "40/5400+30:1800+30"]

1. e4 {[%emt 0:00:00]} e6 {[%emt 0:00:07]} 2. d4 {[%emt 0:00:00]} d5 {[%emt 0:00:05]} 3. Nd2 {[%emt 0:00:00]} c5 {[%emt 0:00:25]} 4. exd5 {[%emt 0:00:21]} Qxd5 {[%emt 0:00:09]} 5. Ngf3 {[%emt 0:00:15]} cxd4 {[%emt 0:00:06]} 6. Bc4 {[%emt 0:00:04]} Qd7 {[%emt 0:00:08]} 7. O-O {[%emt 0:00:29]} Nc6 {[%emt 0:00:21]} 8. Nb3 {[%emt 0:00:05]} a6 {[%emt 0:01:03]} 9. Nbxd4 {[%emt 0:00:57]} Nxd4 {[%emt 0:00:09]} 10. Qxd4 {[%emt 0:00:10]} Qxd4 {[%emt 0:03:29]} 11. Nxd4 {[%emt 0:00:14]} Nf6 {[%emt 0:08:32]} 12. Be2 {[%emt 0:05:23]} e5 {[%emt 0:07:56]} 13. Nb3 {[%emt 0:10:02]} Bf5 {[%emt 0:15:15]} 14. Na5 {[%emt 0:03:53]} O-O-O {[%emt 0:10:44]} 15. Nc4 {[%emt 0:01:42]} Bc5 {[%emt 0:12:39]} 16. Bg5 {[%emt 0:18:17]} Rhe8 {[%emt 0:02:48]} 17. Rad1 {[%emt 0:09:42]} Rxd1 {[%emt 0:01:46]} 18. Rxd1 {[%emt 0:00:21]} Ne4 {[%emt 0:02:17]} 19. Be3 {[%emt 0:11:04]} Bxe3 {[%emt 0:01:15]} 20. Nxe3 {[%emt 0:00:06]} Be6 {[%emt 0:01:15]} 21. Bd3 {[%emt 0:05:00]} Nc5 {[%emt 0:04:37]} 22. Nf5 {[%emt 0:03:44]} Bxf5 {[%emt 0:01:03]} 23. Bxf5+ {[%emt 0:00:16]} Kc7 {[%emt 0:00:06]} 24. b4 {[%emt 0:06:10]} Ne6 {[%emt 0:00:09]} 25. c3 {[%emt 0:00:18]} g6 {[%emt 0:01:42]} 26. Bc2 {[%emt 0:00:18]} Rd8 {[%emt 0:04:43]} 27. Rxd8 {[%emt 0:00:49]} Nxd8 {[%emt 0:01:24]} 28. f3 {[%emt 0:01:07]} Kd6 {[%emt 0:02:19]} 29. Kf2 {[%emt 0:00:38]} Ne6 {[%emt 0:01:41]} 30. Ke3 {[%emt 0:03:36]} f5 {[%emt 0:02:21]} 31. g4 {[%emt 0:03:57]} fxg4 {[%emt 0:07:09]} 32. fxg4 {[%emt 0:00:04]} Nf4 {[%emt 0:00:46]} 33. c4 {[%emt 0:01:20]} b6 {[%emt 0:00:38]} 34. Be4 {[%emt 0:00:24]} Ne6 {[%emt 0:01:23]} 35. Bb7 {[%emt 0:06:08]} Nd4 {[%emt 0:01:40]} 36. c5+ {[%emt 0:05:09]} bxc5 {[%emt 0:01:09]} 37. bxc5+ {[%emt 0:00:02]} Kxc5 {[%emt 0:00:02]} 38. Ke4 {[%emt 0:02:56]} h5 {[%emt 0:02:03]} 39. h3 {[%emt 0:03:52]} Kd6 {[%emt 0:02:48]} 40. Bxa6 {[%emt 0:00:00]} hxg4 {[%emt 0:00:00]} 41. hxg4 {[%emt 0:01:57]} Ne6 {[%emt 0:03:59]} 42. Bb5 {[%emt 0:02:50]} Nc5+ {[%emt 0:04:01]} 43. Kf3 {[%emt 0:03:19]} Kc7 {[%emt 0:05:07]} 44. g5 {[%emt 0:07:53]} Ne6 {[%emt 0:00:42]} 45. Kg4 {[%emt 0:00:04]} e4 {[%emt 0:00:51]} 1/2-1/2

[Event "Azerbaijan Championship 2021"]
[Site "Nakhchivan"]
[Date "2021.05.05"]
[Round "2.2"]
[White "Muradli, Mahammad"]
[Black "Iskandarov, Misratdin"]
[Result "1/2-1/2"]
[ECO "E73"]
[WhiteElo "2449"]
[BlackElo "2535"]
[Annotator "ChessBase"]
[PlyCount "161"]
[EventDate "2021.05.04"]
[EventType "tourn"]
[EventCountry "AZE"]
[SourceTitle "playchess.com"]
[Source "ChessBase"]
[SourceQuality "1"]
[TimeControl "40/5400+30:1800+30"]

1. d4 {[%emt 0:02:44]} Nf6 {[%emt 0:00:00]} 2. c4 {[%emt 0:00:10]} g6 {[%emt 0:00:00]} 3. Nc3 {[%emt 0:00:06]} Bg7 {[%emt 0:00:00]} 4. e4 {[%emt 0:00:05]} d6 {[%emt 0:00:00]} 5. Be2 {[%emt 0:00:04]} O-O {[%emt 0:00:09]} 6. Be3 {[%emt 0:00:03]} e5 {[%emt 0:02:40]} 7. d5 {[%emt 0:00:27]} Na6 {[%emt 0:00:07]} 8. g4 {[%emt 0:00:08]} Nc5 {[%emt 0:00:10]} 9. f3 {[%emt 0:00:06]} h5 {[%emt 0:00:06]} 10. h4 {[%emt 0:09:23]} hxg4 {[%emt 0:01:35]} 11. b4 {[%emt 0:00:36]} gxf3 {[%emt 0:01:08]} 12. Bxf3 {[%emt 0:00:14]} Ncxe4 {[%emt 0:01:15]} 13. Nxe4 {[%emt 0:00:07]} Nxe4 {[%emt 0:00:06]} 14. Bxe4 {[%emt 0:00:05]} f5 {[%emt 0:00:05]} 15. Bg5 {[%emt 0:05:58]} Bf6 {[%emt 0:04:29]} 16. Bxf6 {[%emt 0:03:48]} Qxf6 {[%emt 0:00:08]} 17. Bc2 {[%emt 0:00:47]} e4 {[%emt 0:02:56]} 18. Ne2 {[%emt 0:05:48]} f4 {[%emt 0:02:02]} 19. Qd4 {[%emt 0:19:36]} f3 {[%emt 0:02:09]} 20. Qxf6 {[%emt 0:00:04]} Rxf6 {[%emt 0:00:05]} 21. Ng3 {[%emt 0:24:53]} e3 {[%emt 0:05:21]} 22. Nf1 {[%emt 0:00:30]} f2+ {[%emt 0:06:53]} 23. Ke2 {[%emt 0:00:16]} Bg4+ {[%emt 0:00:08]} 24. Kxe3 {[%emt 0:00:07]} Re8+ {[%emt 0:00:04]} 25. Kd4 {[%emt 0:00:07]} Rf4+ {[%emt 0:16:48]} 26. Kc3 {[%emt 0:00:54]} Re1 {[%emt 0:05:28]} 27. Nh2 {[%emt 0:04:09]} Rxh1 {[%emt 0:17:19]} 28. Rxh1 {[%emt 0:00:52]} Bh5 {[%emt 0:00:56]} 29. Rc1 {[%emt 0:07:56]} Rxh4 {[%emt 0:01:05]} 30. Nf1 {[%emt 0:00:00]} Be2 {[%emt 0:06:33]} 31. Kd2 {[%emt 0:01:50]} Bxc4 {[%emt 0:00:21]} 32. a3 {[%emt 0:04:07]} g5 {[%emt 0:07:07]} 33. Bd3 {[%emt 0:02:41]} Bxd5 {[%emt 0:02:33]} 34. Rxc7 {[%emt 0:00:01]} Rh3 {[%emt 0:05:41]} 35. Ke2 {[%emt 0:02:09]} Kf8 {[%emt 0:05:42]} 36. Ne3 {[%emt 0:00:33]} Be4 {[%emt 0:01:01]} 37. Rc3 {[%emt 0:02:06]} Rf3 {[%emt 0:01:27]} 38. Rc1 {[%emt 0:01:03]} d5 {[%emt 0:03:47]} 39. Bxe4 {[%emt 0:03:59]} dxe4 {[%emt 0:00:02]} 40. Ng4 {[%emt 0:00:00]} Rxa3 {[%emt 0:00:00]} 41. Nxf2 {[%emt 0:02:23]} Ra4 {[%emt 0:05:09]} 42. Rc8+ {[%emt 0:02:26]} Ke7 {[%emt 0:00:06]} 43. Rc7+ {[%emt 0:00:04]} Kd6 {[%emt 0:00:07]} 44. Rxb7 {[%emt 0:00:04]} Kc6 {[%emt 0:00:54]} 45. Rb8 {[%emt 0:00:02]} Kc7 {[%emt 0:00:06]} 46. Rb5 {[%emt 0:00:05]} Kc6 {[%emt 0:00:18]} 47. Rxg5 {[%emt 0:00:07]} Rxb4 {[%emt 0:00:04]} 48. Ke3 {[%emt 0:00:07]} Rb5 {[%emt 0:05:39]} 49. Rg7 {[%emt 0:00:13]} Rb3+ {[%emt 0:01:32]} 50. Kxe4 {[%emt 0:00:14]} a5 {[%emt 0:00:04]} 51. Nd3 {[%emt 0:00:23]} a4 {[%emt 0:00:32]} 52. Kd4 {[%emt 0:00:04]} Rb1 {[%emt 0:01:23]} 53. Kc4 {[%emt 0:00:26]} Rh1 {[%emt 0:00:53]} 54. Rg6+ {[%emt 0:00:20]} Kc7 {[%emt 0:00:07]} 55. Nc5 {[%emt 0:00:47]} a3 {[%emt 0:00:21]} 56. Ra6 {[%emt 0:00:17]} Rc1+ {[%emt 0:00:19]} 57. Kb4 {[%emt 0:00:07]} Rb1+ {[%emt 0:00:50]} 58. Nb3 {[%emt 0:00:02]} a2 {[%emt 0:00:27]} 59. Rxa2 {[%emt 0:00:02]} Kd6 {[%emt 0:00:07]} 60. Ra5 {[%emt 0:00:08]} Rh1 {[%emt 0:00:19]} 61. Kc4 {[%emt 0:00:05]} Rg1 {[%emt 0:00:35]} 62. Rd5+ {[%emt 0:00:09]} Ke7 {[%emt 0:00:18]} 63. Nc5 {[%emt 0:00:37]} Rc1+ {[%emt 0:00:14]} 64. Kb5 {[%emt 0:00:13]} Rb1+ {[%emt 0:00:44]} 65. Kc6 {[%emt 0:00:02]} Rc1 {[%emt 0:00:10]} 66. Rf5 {[%emt 0:00:08]} Rc2 {[%emt 0:00:15]} 67. Kd5 {[%emt 0:00:10]} Rd2+ {[%emt 0:00:09]} 68. Ke5 {[%emt 0:00:01]} Re2+ {[%emt 0:00:08]} 69. Ne4 {[%emt 0:00:05]} Ra2 {[%emt 0:00:12]} 70. Nc3 {[%emt 0:00:06]} Ra1 {[%emt 0:00:13]} 71. Nd5+ {[%emt 0:00:10]} Kd7 {[%emt 0:00:06]} 72. Rf7+ {[%emt 0:00:11]} Kc6 {[%emt 0:00:07]} 73. Rc7+ {[%emt 0:00:01]} Kb5 {[%emt 0:00:06]} 74. Rc8 {[%emt 0:00:16]} Rh1 {[%emt 0:00:13]} 75. Nc3+ {[%emt 0:00:19]} Kb6 {[%emt 0:00:39]} 76. Ne4 {[%emt 0:01:01]} Rh5+ {[%emt 0:00:12]} 77. Kd4 {[%emt 0:00:08]} Rh4 {[%emt 0:00:05]} 78. Rc1 {[%emt 0:00:16]} Kb5 {[%emt 0:00:13]} 79. Rc5+ {[%emt 0:00:22]} Kb6 {[%emt 0:00:05]} 80. Rc4 {[%emt 0:00:04]} Kb5 {[%emt 0:00:05]} 81. Rc5+ {[%emt 0:00:04]} 1/2-1/2

[Event "Azerbaijan Championship 2021"]
[Site "Nakhchivan"]
[Date "2021.05.05"]
[Round "2.4"]
[White "Suleymanli, Aydin"]
[Black "Gadimbayli, Abdulla"]
[Result "1-0"]
[ECO "D11"]
[WhiteElo "2520"]
[BlackElo "2470"]
[Annotator "ChessBase"]
[PlyCount "137"]
[EventDate "2021.05.04"]
[EventType "tourn"]
[EventCountry "AZE"]
[SourceTitle "playchess.com"]
[Source "ChessBase"]
[SourceQuality "1"]
[TimeControl "40/5400+30:1800+30"]

1. d4 {[%emt 0:00:00]} d5 {[%emt 0:00:16]} 2. c4 {[%emt 0:00:00]} c6 {[%emt 0:00:34]} 3. Nf3 {[%emt 0:00:00]} Nf6 {[%emt 0:00:04]} 4. e3 {[%emt 0:00:00]} g6 {[%emt 0:05:35]} 5. Nc3 {[%emt 0:00:55]} Bg7 {[%emt 0:00:38]} 6. b4 {[%emt 0:05:52]} O-O {[%emt 0:04:07]} 7. Bb2 {[%emt 0:00:15]} Bg4 {[%emt 0:19:07]} 8. Qb3 {[%emt 0:02:06]} dxc4 {[%emt 0:17:44]} 9. Bxc4 {[%emt 0:01:13]} b5 {[%emt 0:00:54]} 10. Be2 {[%emt 0:02:26]} a5 {[%emt 0:02:06]} 11. bxa5 {[%emt 0:00:34]} Qxa5 {[%emt 0:01:46]} 12. a3 {[%emt 0:03:11]} Nbd7 {[%emt 0:09:53]} 13. O-O {[%emt 0:00:54]} e6 {[%emt 0:06:18]} 14. Rfc1 {[%emt 0:01:54]} Rfc8 {[%emt 0:01:40]} 15. h3 {[%emt 0:16:09]} Bxf3 {[%emt 0:02:04]} 16. Bxf3 {[%emt 0:00:01]} Nd5 {[%emt 0:04:53]} 17. Ne4 {[%emt 0:02:05]} Bf8 {[%emt 0:04:10]} 18. Nc5 {[%emt 0:04:41]} Nxc5 {[%emt 0:04:42]} 19. dxc5 {[%emt 0:00:04]} Bg7 {[%emt 0:05:05]} 20. e4 {[%emt 0:09:46]} Bxb2 {[%emt 0:02:27]} 21. Qxb2 {[%emt 0:00:56]} Nc7 {[%emt 0:00:17]} 22. h4 {[%emt 0:01:31]} Na6 {[%emt 0:01:03]} 23. h5 {[%emt 0:02:45]} Qd8 {[%emt 0:00:37]} 24. Qc3 {[%emt 0:17:29]} Qg5 {[%emt 0:02:44]} 25. e5 {[%emt 0:01:25]} Nc7 {[%emt 0:02:55]} 26. Bxc6 {[%emt 0:00:45]} Ra4 {[%emt 0:00:01]} 27. hxg6 {[%emt 0:02:57]} hxg6 {[%emt 0:00:13]} 28. Bb7 {[%emt 0:07:33]} Rb8 {[%emt 0:00:49]} 29. Bf3 {[%emt 0:00:08]} Kg7 {[%emt 0:00:56]} 30. Rab1 {[%emt 0:04:10]} Rf4 {[%emt 0:00:27]} 31. g3 {[%emt 0:02:22]} Rc4 {[%emt 0:00:45]} 32. Qe1 {[%emt 0:00:28]} Ra4 {[%emt 0:00:30]} 33. Rc3 {[%emt 0:01:11]} Rd8 {[%emt 0:00:28]} 34. Rb4 {[%emt 0:01:24]} Rd4 {[%emt 0:00:09]} 35. Rxa4 {[%emt 0:00:48]} Rxa4 {[%emt 0:00:43]} 36. c6 {[%emt 0:00:01]} Qd8 {[%emt 0:00:44]} 37. Qe3 {[%emt 0:01:06]} Rd4 {[%emt 0:00:26]} 38. Kg2 {[%emt 0:00:43]} Rd2 {[%emt 0:00:33]} 39. Be4 {[%emt 0:01:15]} Qd4 {[%emt 0:00:34]} 40. Qxd4 {[%emt 0:00:00]} Rxd4 {[%emt 0:00:00]} 41. Kf3 {[%emt 0:03:04]} Ra4 {[%emt 0:08:38]} 42. Bc2 {[%emt 0:04:17]} Ra8 {[%emt 0:01:21]} 43. Be4 {[%emt 0:04:51]} Ra4 {[%emt 0:03:00]} 44. Ke3 {[%emt 0:00:29]} Kf8 {[%emt 0:02:47]} 45. Rd3 {[%emt 0:11:05]} Na6 {[%emt 0:06:58]} 46. Rd8+ {[%emt 0:01:34]} Ke7 {[%emt 0:00:55]} 47. Rd7+ {[%emt 0:07:13]} Ke8 {[%emt 0:00:53]} 48. Rb7 {[%emt 0:04:24]} Rxa3+ {[%emt 0:03:37]} 49. Kf4 {[%emt 0:00:08]} b4 {[%emt 0:04:05]} 50. Kg5 {[%emt 0:00:41]} b3 {[%emt 0:01:15]} 51. Rb8+ {[%emt 0:03:32]} Ke7 {[%emt 0:00:09]} 52. f3 {[%emt 0:00:24]} Ra5 {[%emt 0:01:11]} 53. Rb7+ {[%emt 0:00:20]} Kd8 {[%emt 0:00:35]} 54. Rxb3 {[%emt 0:00:48]} Nc5 {[%emt 0:02:01]} 55. Rb4 {[%emt 0:02:25]} Ra3 {[%emt 0:00:29]} 56. g4 {[%emt 0:00:39]} Nxe4+ {[%emt 0:00:35]} 57. fxe4 {[%emt 0:00:03]} Rf3 {[%emt 0:00:29]} 58. Rb7 {[%emt 0:00:07]} Kc8 {[%emt 0:00:16]} 59. Rd7 {[%emt 0:00:46]} Rf1 {[%emt 0:00:06]} 60. Kh6 {[%emt 0:00:31]} Rf4 {[%emt 0:00:55]} 61. g5 {[%emt 0:00:16]} Rh4+ {[%emt 0:00:39]} 62. Kg7 {[%emt 0:00:05]} Rg4 {[%emt 0:00:02]} 63. Kxf7 {[%emt 0:01:17]} Rxg5 {[%emt 0:00:02]} 64. Kxe6 {[%emt 0:00:04]} Rg1 {[%emt 0:00:27]} 65. Kf7 {[%emt 0:00:50]} Rf1+ {[%emt 0:00:25]} 66. Ke8 {[%emt 0:00:25]} Rf4 {[%emt 0:00:48]} 67. e6 {[%emt 0:00:52]} g5 {[%emt 0:00:31]} 68. Rg7 {[%emt 0:01:14]} g4 {[%emt 0:00:53]} 69. e5 {[%emt 0:00:01]} 1-0

[Event "Azerbaijan Championship 2021"]
[Site "Nakhchivan"]
[Date "2021.05.07"]
[Round "4.4"]
[White "Safarli, Eltaj"]
[Black "Iskandarov, Misratdin"]
[Result "1/2-1/2"]
[ECO "C80"]
[WhiteElo "2598"]
[BlackElo "2535"]
[Annotator "ChessBase"]
[PlyCount "94"]
[EventDate "2021.05.04"]
[EventType "tourn"]
[EventCountry "AZE"]
[SourceTitle "playchess.com"]
[Source "ChessBase"]
[SourceQuality "1"]
[TimeControl "40/5400+30:1800+30"]

1. e4 e5 {[%emt 0:01:48]} 2. Nf3 {[%emt 0:00:00]} Nc6 {[%emt 0:00:09]} 3. Bb5 {[%emt 0:00:00]} a6 {[%emt 0:00:24]} 4. Ba4 {[%emt 0:00:00]} Nf6 {[%emt 0:01:06]} 5. O-O {[%emt 0:01:01]} Nxe4 {[%emt 0:00:26]} 6. d4 {[%emt 0:00:14]} b5 {[%emt 0:00:05]} 7. Bb3 {[%emt 0:00:03]} d5 {[%emt 0:00:07]} 8. Nxe5 {[%emt 0:00:12]} Nxe5 {[%emt 0:01:15]} 9. dxe5 {[%emt 0:00:05]} Be6 {[%emt 0:03:56]} 10. Nd2 {[%emt 0:00:26]} Nxd2 {[%emt 0:05:39]} 11. Qxd2 {[%emt 0:00:21]} c6 {[%emt 0:01:39]} 12. Qf4 {[%emt 0:02:13]} h5 {[%emt 0:06:39]} 13. c3 {[%emt 0:05:12]} Be7 {[%emt 0:05:23]} 14. Bc2 {[%emt 0:05:41]} Qd7 {[%emt 0:12:50]} 15. Qg3 {[%emt 0:03:23]} h4 {[%emt 0:04:08]} 16. Qf3 {[%emt 0:00:20]} Bg4 {[%emt 0:01:37]} 17. Qd3 {[%emt 0:04:33]} g6 {[%emt 0:03:07]} 18. h3 {[%emt 0:02:50]} Bf5 {[%emt 0:00:19]} 19. Qd4 {[%emt 0:03:58]} Qa7 {[%emt 0:11:11]} 20. Qd1 {[%emt 0:04:40]} Bxc2 {[%emt 0:01:54]} 21. Qxc2 {[%emt 0:00:04]} Qd7 {[%emt 0:00:07]} 22. a4 {[%emt 0:08:50]} O-O {[%emt 0:01:08]} 23. Be3 {[%emt 0:04:42]} Qe6 {[%emt 0:03:50]} 24. f4 {[%emt 0:01:15]} Qf5 {[%emt 0:02:14]} 25. Qf2 {[%emt 0:01:29]} Rfb8 {[%emt 0:04:54]} 26. Bc5 {[%emt 0:04:06]} Bxc5 {[%emt 0:08:08]} 27. Qxc5 {[%emt 0:00:11]} bxa4 {[%emt 0:00:04]} 28. Qxc6 {[%emt 0:01:47]} Qe6 {[%emt 0:02:32]} 29. Qxe6 {[%emt 0:00:30]} fxe6 {[%emt 0:00:04]} 30. Rf2 {[%emt 0:00:08]} Rb6 {[%emt 0:02:24]} 31. Rxa4 {[%emt 0:00:33]} Rab8 {[%emt 0:00:46]} 32. b4 {[%emt 0:01:25]} Rc8 {[%emt 0:01:56]} 33. Rfa2 {[%emt 0:01:27]} Rcc6 {[%emt 0:02:51]} 34. Kf2 {[%emt 0:04:19]} Kg7 {[%emt 0:00:24]} 35. R2a3 {[%emt 0:02:44]} g5 {[%emt 0:01:37]} 36. f5 {[%emt 0:07:49]} exf5 {[%emt 0:00:28]} 37. Ra5 {[%emt 0:00:19]} d4 {[%emt 0:07:20]} 38. cxd4 {[%emt 0:00:29]} Rxb4 {[%emt 0:00:04]} 39. Ke3 {[%emt 0:10:52]} Rb2 {[%emt 0:01:26]} 40. Rxa6 {[%emt 0:00:00]} Rxa6 {[%emt 0:00:00]} 41. Rxa6 {[%emt 0:14:41]} Rb3+ {[%emt 0:05:18]} 42. Kf2 {[%emt 0:09:32]} Rb2+ {[%emt 0:00:21]} 43. Kg1 {[%emt 0:04:03]} Rb1+ {[%emt 0:04:43]} 44. Kh2 {[%emt 0:02:05]} Rd1 {[%emt 0:00:26]} 45. Rf6 {[%emt 0:02:56]} Rxd4 {[%emt 0:00:17]} 46. Rxf5 {[%emt 0:00:01]} Kg6 {[%emt 0:00:09]} 47. Rf6+ {[%emt 0:00:03]} Kg7 {[%emt 0:00:08]} 1/2-1/2